bitfinex-derivatives/quotes_BNBF0:USTF0_20250116
["timestamp","ask_amount","ask_price","bid_price","bid_amount"]
[1737039303637,1.48364474,705.01,702.56,0.26124564]
[1737039303638,1.04793656,704.98,702.56,0.26124564]
[1737039303936,1.04793656,704.72,702.56,0.26124564]
[1737039305138,1.04793656,704.88,702.56,0.26124564]
[1737039306141,1.04793656,704.8,702.56,0.26124564]
[1737039306347,1.04793656,704.8,702.57,0.26123425]
[1737039306643,1.04793656,704.8,702.58,0.26123425]
[1737039306844,1.04793656,704.8,702.59,0.26123425]
[1737039307046,1.04793656,704.57,702.61,1.0546266]
[1737039307241,1.04793656,704.57,702.62,0.26123425]
[1737039307442,1.04793656,704.57,702.63,0.28464483]
[1737039307641,1.04793656,704.57,702.64,0.26123425]
[1737039308647,1.04793656,704.84,702.64,0.26123425]
[1737039308844,1.04793656,704.84,702.63,0.28464483]
[1737039309039,1.04793656,704.84,702.64,0.26122138]
[1737039309541,1.04793656,704.84,702.65,0.26122138]
[1737039309849,1.04793656,704.76,702.66,0.26123128]
[1737039310043,1.04793656,704.76,702.65,0.87080504]
[1737039310249,1.04793656,704.76,702.65,0.60957376]
[1737039311147,1.04793656,704.55,702.65,0.60957376]
[1737039311443,1.04793656,704.55,702.66,0.26125299]
[1737039311849,1.04793656,704.55,702.67,0.261318]
[1737039312151,1.04793656,704.55,702.68,0.261318]
[1737039312350,1.04793656,704.44,702.66,0.261318]
[1737039312546,1.04793656,704.44,702.69,0.261318]
[1737039312750,1.04793656,704.44,702.7,0.261318]
[1737039313055,1.04793656,704.44,702.66,0.87095848]
[1737039313244,1.04793656,704.44,702.71,0.261318]
[1737039313448,1.04793656,704.44,702.72,0.261318]
[1737039313650,1.04793656,704.44,702.66,0.87098051]
[1737039313851,1.04793656,704.44,702.67,0.261318]
[1737039314247,1.48407182,704.54,702.65,0.60957376]
[1737039314248,1.04793656,704.32,702.68,0.261318]
[1737039314443,1.04793656,704.32,702.69,0.261318]
[1737039314651,1.04793656,704.32,702.7,0.26132837]
[1737039314949,1.04793656,704.32,702.71,0.26132837]
[1737039315145,1.04793656,704.32,702.72,0.26132837]
[1737039315350,1.04793656,704.32,702.73,0.26132837]
[1737039315652,1.04793656,704.32,702.74,0.26132837]
[1737039315852,1.04793656,704.27,702.75,0.26132837]
[1737039316053,1.04793656,704.27,702.76,0.26131486]
[1737039316249,1.04793656,704.27,702.64,0.26131486]
[1737039316548,1.04793656,704.27,702.65,0.26131486]
[1737039316750,1.04793656,704.29,702.66,0.26131486]
[1737039316951,1.04793656,704.29,702.67,0.26131486]
[1737039317153,1.04793656,704.29,702.68,0.26131486]
[1737039317351,1.04793656,704.29,702.69,0.2613149]
[1737039317547,1.04793656,704.25,702.64,0.2613149]
[1737039317746,1.04793656,704.25,702.65,0.2613149]
[1737039317951,1.04793656,704.25,702.63,0.28464483]
[1737039318151,1.04793656,704.25,702.64,0.26132698]
[1737039318547,1.04793656,704.25,702.65,0.26132698]
[1737039318749,1.04793656,704.16,702.63,0.28464483]
[1737039318953,1.04793656,704.16,702.64,0.26132698]
[1737039319756,1.04793656,704.21,702.64,0.26132698]
[1737039320254,1.04793656,704.21,702.65,0.26130001]
[1737039320449,1.04793656,704.21,702.64,0.26130001]
[1737039320657,1.04793656,704.21,702.65,0.26130001]
[1737039320849,1.04793656,704.21,702.66,0.26130001]
[1737039321053,1.04793656,704.19,702.67,1.31592661]
[1737039321252,1.04793656,704.19,702.68,0.26130001]
[1737039321955,1.04793656,704.14,702.71,1.0546266]
[1737039322158,1.04793656,704.14,702.72,0.26129643]
[1737039322952,1.04793656,704.14,702.73,0.26123827]
[1737039323254,1.04793656,704.14,702.63,0.28464483]
[1737039323255,1.04793656,704.23,702.8,1.0546266]
[1737039323454,1.04793656,704.23,702.81,0.26123827]
[1737039324159,1.04793656,704.34,702.96,1.0546266]
[1737039324353,1.04793656,704.34,702.97,0.26123827]
[1737039325156,1.04793656,704.34,702.98,0.26123827]
[1737039325369,1.04793656,704.34,702.99,0.26123827]
[1737039325554,2.13953715,704.98,702.63,1.33927143]
[1737039325555,1.04793656,704.48,703.05,1.0546266]
[1737039325757,1.04793656,704.48,703.06,0.26112634]
[1737039326256,4.97524052,712.81,703.06,0.26112634]
[1737039326456,4.83871473,708.12,702.64,0.87039838]
[1737039326656,4.83871473,708.11,702.65,0.26112634]
[1737039326857,6.69713601,708.1,702.66,0.26112634]
[1737039327157,4.83871473,708.09,702.67,0.26112634]
[1737039327355,4.83871473,708.08,702.68,0.26112634]
[1737039327555,4.83871473,708.07,702.69,0.26112634]
[1737039327756,4.83871473,708.06,702.7,0.26112634]
[1737039327953,1.04724558,704.75,703.15,1.05984032]
[1737039328255,1.04724558,704.75,703.16,0.26112634]
[1737039328457,0.28379663,704.73,703.16,0.26112634]
[1737039329050,1.04724558,704.54,703.16,0.26112634]
[1737039329250,1.04724558,704.54,703.04,0.87053191]
[1737039329556,1.04724558,704.54,703.05,0.26112634]
[1737039329752,1.04724558,704.54,703.06,0.26112634]
[1737039329955,1.04724558,704.54,703.07,0.26112634]
[1737039330156,1.04724558,704.54,703.08,0.26112634]
[1737039330459,1.04724558,704.56,703.09,0.26112634]
[1737039330652,1.04724558,704.56,703.1,0.26112634]
[1737039330851,1.04724558,704.56,703.11,0.26112634]
[1737039331055,1.04724558,704.56,703.03,0.60939941]
[1737039331358,1.04724558,704.56,703.04,0.87052575]
[1737039331561,1.04724558,704.56,703.0,1.05984032]
[1737039331562,1.04724558,704.53,703.05,0.87052575]
[1737039331760,1.04724558,704.53,703.06,0.60939941]
[1737039331961,1.04724558,704.53,703.07,0.26112634]
[1737039332261,1.04724558,704.53,703.0,0.87054094]
[1737039332463,1.04724558,704.56,703.08,0.26116005]
[1737039332660,1.04724558,704.56,703.0,0.6094146]
[1737039332962,1.04724558,704.56,703.01,0.26111179]
[1737039333166,1.04724558,704.56,703.0,0.6094146]
[1737039333664,0.28379663,704.73,703.15,1.05984032]
[1737039334562,0.28379663,704.73,703.16,0.87016297]
[1737039334757,0.28379663,704.73,703.17,0.26103205]
[1737039334961,0.28379663,704.73,703.21,1.05984032]
[1737039335160,0.28379663,704.73,703.22,0.26103205]
[1737039336163,0.28379663,704.73,702.99,0.26103205]
[1737039336365,0.28379663,704.73,702.99,0.87022631]
[1737039336566,0.28379663,704.73,703.0,0.26103205]
[1737039336865,0.28379663,704.73,703.01,0.26106828]
[1737039337167,0.28379663,704.73,703.02,0.26106828]
[1737039337362,0.28379663,704.73,703.03,0.26106828]
[1737039337665,0.28379663,704.73,703.04,0.26106828]
[1737039337860,0.28379663,704.73,703.05,0.26106828]
[1737039338064,0.28379663,704.73,703.06,0.26106828]
[1737039338258,0.28379663,704.73,703.07,0.26106828]
[1737039338559,1.04724558,705.02,703.08,0.26106828]
[1737039338759,1.04724558,705.02,703.09,0.26106828]
[1737039339066,1.04724558,705.02,703.1,0.26106828]
[1737039339264,1.04724558,704.9,702.93,0.26106828]
[1737039339466,1.04724558,704.9,702.88,0.87049824]
[1737039339666,1.04724558,704.9,702.87,1.05984032]
[1737039339966,1.04724558,704.9,702.88,0.26116964]
[1737039340369,1.04724558,704.81,702.88,0.26116964]
[1737039340571,1.04724558,704.81,702.76,0.26116964]
[1737039340870,1.04724558,704.81,702.77,0.26116964]
[1737039341167,1.04724558,704.81,702.78,0.26116964]
[1737039341365,1.04724558,704.81,702.76,0.26116964]
[1737039341570,1.04724558,705.03,702.77,0.26116964]
[1737039341761,1.04724558,705.03,702.78,0.26116964]
[1737039342068,1.04724558,705.03,702.79,0.26116964]
[1737039342270,1.04724558,705.03,702.7,0.26116964]
[1737039342467,1.04724558,705.07,702.73,1.05984032]
[1737039342665,1.04724558,705.07,702.74,3.6790454]
[1737039342861,1.04724558,705.07,702.75,3.67899215]
[1737039343065,1.04724558,705.07,702.76,2.36350936]
[1737039343263,1.04724558,705.07,702.77,3.6786061]
[1737039343462,1.04724558,705.07,702.78,0.2610442]
[1737039343665,1.04724558,705.07,702.79,0.2610442]
[1737039343863,1.04724558,705.19,702.99,1.05984032]
[1737039344370,1.04724558,705.19,703.0,0.87020097]
[1737039344569,1.04724558,705.19,703.01,0.2610442]
[1737039344770,1.04724558,705.19,703.02,0.2610442]
[1737039344966,1.04724558,705.19,703.03,0.2610442]
[1737039345164,1.04724558,705.19,703.04,0.2610442]
[1737039345363,1.04724558,705.19,703.05,0.24556587]
[1737039345666,1.04724558,704.97,702.92,0.60915677]
[1737039345865,1.04724558,704.97,702.83,0.60915677]
[1737039346068,1.04724558,704.97,702.82,1.05984032]
[1737039346069,1.04724558,704.97,702.84,0.60915677]
[1737039346370,1.04724558,704.97,702.85,4.05295393]
[1737039346669,0.71717151,705.54,702.85,4.05295393]
[1737039346670,1.04724558,704.95,702.86,0.2611188]
[1737039347872,1.2566947,705.4,694.99,5.01471087]
[1737039347873,1.04724558,705.13,702.87,0.2611188]
[1737039348174,1.04724558,705.13,702.88,0.2611188]
[1737039348372,1.04724558,705.13,702.71,1.05984032]
[1737039348573,1.04724558,705.13,702.72,0.87044356]
[1737039349071,1.04724558,705.07,702.73,0.87042072]
[1737039349271,1.04724558,705.07,702.72,0.87042072]
[1737039349573,1.04724558,705.07,702.73,0.87042072]
[1737039349872,1.04724558,705.07,702.74,0.87042072]
[1737039350070,1.04724558,705.07,702.75,0.60930337]
[1737039350270,1.04724558,705.07,702.71,1.05984032]
[1737039350271,1.04724558,705.07,702.76,0.87042072]
[1737039350472,1.04724558,705.06,702.74,1.05984032]
[1737039351073,1.04724558,705.0,702.74,1.05984032]
[1737039351273,1.04724558,705.0,702.75,0.87046669]
[1737039351976,1.04724558,705.0,702.75,0.26113247]
[1737039352273,1.04724558,705.01,702.82,1.05984032]
[1737039352669,0.71684065,705.39,702.83,0.26113247]
[1737039352868,0.71684065,705.39,702.47,0.87036151]
[1737039353068,0.71684065,705.39,702.48,0.26113247]
[1737039353269,0.71684065,705.39,702.49,0.26113247]
[1737039353471,0.71684065,705.39,702.5,0.26113247]
[1737039353673,1.85952189,707.9,702.87,1.05630528]
[1737039353674,1.042792,705.11,702.87,1.05630528]
[1737039353871,1.042792,705.11,702.88,0.26113247]
[1737039354477,1.042792,705.11,702.88,0.87044272]
[1737039354677,1.042792,704.89,702.9,1.05630528]
[1737039354976,1.042792,704.89,702.91,0.87044988]
[1737039355175,1.042792,704.89,702.92,0.26113247]
[1737039355476,1.042792,704.89,702.93,0.26113247]
[1737039355675,1.042792,704.89,702.94,0.26113247]
[1737039355879,1.042792,704.7,702.98,1.05630528]
[1737039356078,1.042792,704.7,702.99,0.87044988]
[1737039356571,1.042792,704.7,702.99,0.26113247]
[1737039356776,1.042792,704.7,703.0,0.26113247]
[1737039356976,1.042792,704.61,703.08,1.05630528]
[1737039357176,1.042792,704.61,703.09,0.26113247]
[1737039357576,1.042792,704.61,703.08,1.05630528]
[1737039358175,1.042792,704.42,702.83,1.05630528]
[1737039358474,1.042792,704.42,702.84,0.26126309]
[1737039359375,1.042792,704.15,702.84,0.26126309]
[1737039359571,1.042792,704.15,702.76,1.05630528]
[1737039359973,1.042792,704.15,702.77,0.26132767]
[1737039360373,2.12903367,704.67,702.77,0.26132767]
[1737039360374,1.042792,704.21,702.77,0.26132767]
[1737039360575,1.042792,704.21,702.78,0.26133674]
[1737039360776,1.042792,704.21,702.79,0.26133674]
[1737039360971,1.042792,704.21,702.51,1.05630528]
[1737039361177,1.042792,704.21,702.52,0.26135055]
[1737039361779,1.042792,704.1,702.52,0.26135055]
[1737039361978,1.042792,704.1,702.53,0.26135055]
[1737039362177,1.042792,704.1,702.54,0.26133335]
[1737039362374,1.042792,704.1,702.5,0.26133335]
[1737039362577,1.042792,704.1,702.51,0.26133335]
[1737039362774,1.042792,704.1,702.27,1.05630528]
[1737039362775,1.042792,704.35,702.5,0.26133335]
[1737039363078,1.042792,704.35,702.51,0.26133335]
[1737039363276,1.042792,704.35,702.52,0.26133335]
[1737039363476,1.042792,704.35,702.53,0.26133335]
[1737039363676,1.042792,704.35,702.54,0.26133335]
[1737039363879,1.042792,704.53,702.55,0.26133335]
[1737039364077,1.042792,704.53,702.56,0.26133335]
[1737039364279,1.042792,704.53,702.57,0.26133335]
[1737039364474,1.042792,704.53,702.43,0.87099003]
[1737039364678,1.042792,704.53,702.44,0.26133335]
[1737039364880,1.042792,704.53,702.45,0.26133335]
[1737039365081,1.042792,704.53,702.44,0.26133335]
[1737039365381,1.042792,704.45,702.45,0.26133335]
[1737039365676,1.042792,704.45,702.46,0.26133335]
[1737039365875,1.042792,704.45,702.47,0.26133335]
[1737039366076,1.042792,704.45,702.48,0.26133335]
[1737039366279,1.042792,704.48,702.56,1.05630528]
[1737039366475,1.042792,704.48,702.57,0.87099003]
[1737039366676,1.042792,704.48,702.58,0.26133335]
[1737039366881,1.042792,704.48,702.57,0.26133335]
[1737039367075,1.042792,704.48,702.58,0.26133335]
[1737039367279,1.042792,704.48,702.59,0.26133335]
[1737039367480,1.042792,704.48,702.6,0.26133335]
[1737039367679,1.042792,704.48,702.56,1.05630528]
[1737039367879,1.042792,704.48,699.41,1.34985968]
[1737039367880,1.042792,704.51,702.57,0.26130621]
[1737039368080,1.042792,704.51,702.58,0.26130621]
[1737039368280,1.042792,704.51,702.36,0.26130621]
[1737039368480,1.042792,704.51,702.37,0.26130752]
[1737039368680,1.042792,704.51,702.38,0.26130752]
[1737039368880,1.042792,704.51,702.39,0.26130752]
[1737039369081,1.042792,704.52,702.4,0.26130752]
[1737039369280,1.042792,704.52,702.41,0.26130752]
[1737039369480,1.042792,704.52,702.42,0.26130752]
[1737039369780,1.042792,704.52,702.43,0.26130752]
[1737039369980,1.042792,704.52,702.44,0.26130752]
[1737039370180,1.042792,704.52,702.45,0.26130752]
[1737039370382,1.042792,704.46,702.46,0.26130752]
[1737039370588,1.042792,704.46,702.47,0.26130752]
[1737039370776,1.042792,704.46,702.36,0.26130752]
[1737039370976,1.042792,704.46,702.48,0.26130752]
[1737039371175,1.042792,704.46,702.49,0.26130752]
[1737039371378,2.12903367,705.05,702.33,0.60969306]
[1737039371379,1.042792,704.35,702.5,0.26130752]
[1737039371581,1.042792,704.35,702.22,1.05630528]
[1737039371582,1.042792,704.35,702.51,0.26130752]
[1737039371781,1.042792,704.35,702.52,0.26130752]
[1737039371985,1.042792,704.35,702.53,0.26130752]
[1737039372181,1.042792,704.35,702.54,0.26130752]
[1737039372377,1.042792,704.35,701.93,1.05630528]
[1737039372378,1.3267498,704.33,702.38,0.87100058]
[1737039372582,1.3267498,704.33,702.39,1.15574267]
[1737039372783,1.3267498,704.33,702.4,0.26130752]
[1737039373085,1.3267498,704.33,702.41,0.26130752]
[1737039373278,1.3267498,704.33,702.42,0.26130752]
[1737039373683,1.042792,704.31,702.43,0.26130752]
[1737039373979,1.042792,704.31,702.44,0.26130752]
[1737039374180,1.042792,704.31,702.45,0.26130752]
[1737039374384,1.042792,704.31,702.4,0.26130752]
[1737039374582,1.042792,704.31,702.41,0.26130752]
[1737039374785,1.042792,704.31,702.42,0.26130752]
[1737039375083,1.042792,704.3,702.43,0.26130752]
[1737039375278,1.042792,704.3,702.44,0.26130752]
[1737039375482,1.042792,704.3,702.45,0.26130752]
[1737039375784,1.042792,704.3,702.46,0.26130752]
[1737039376078,0.2839578,704.33,702.47,0.26130752]
[1737039376383,0.2839578,704.33,702.48,0.26139998]
[1737039376582,0.2839578,704.33,702.4,0.26139998]
[1737039376883,0.2839578,704.33,702.39,0.28474209]
[1737039377084,0.2839578,704.33,702.4,0.261397]
[1737039379284,0.2839578,704.33,702.39,0.28474209]
[1737039379485,0.2839578,704.33,702.4,0.26148218]
[1737039379685,0.2839578,704.33,702.41,0.26149323]
[1737039379885,0.2839578,704.33,702.42,0.26149323]
[1737039380081,0.2839578,704.33,701.71,1.05630528]
[1737039380082,0.2839578,704.33,702.43,0.26149323]
[1737039380284,0.2839578,704.33,701.72,0.61008844]
[1737039380480,1.042792,704.19,701.74,0.28500584]
[1737039380680,1.042792,704.19,701.75,0.87159171]
[1737039380985,1.042792,704.19,701.76,0.26150327]
[1737039381186,1.042792,704.19,701.77,0.26150327]
[1737039381388,1.042792,704.19,701.78,0.26150327]
[1737039381588,1.042792,704.2,701.79,0.26150327]
[1737039381888,1.042792,704.2,701.74,0.28500584]
[1737039382086,1.042792,704.2,701.8,0.26149385]
[1737039382280,1.042792,704.2,701.76,0.61007619]
[1737039382281,1.042792,704.2,701.81,0.26149385]
[1737039382485,1.042792,704.2,701.82,0.26149385]
[1737039382687,0.2839578,704.33,701.83,0.26149385]
[1737039382688,1.042792,704.28,701.83,0.26149385]
[1737039382883,1.042792,704.28,701.84,0.26149385]
[1737039383083,1.042792,704.28,701.85,0.26149385]
[1737039383284,1.042792,704.28,701.86,0.26149385]
[1737039383482,1.042792,704.28,701.87,0.26149385]
[1737039383684,1.042792,704.28,701.88,0.26149385]
[1737039383886,1.042792,704.28,701.74,0.28500584]
[1737039383887,1.042792,704.28,701.89,0.26149385]
[1737039384193,1.042792,704.26,701.9,0.26149385]
[1737039384393,1.042792,704.26,701.91,0.26149385]
[1737039384589,1.042792,704.26,701.92,0.26149385]
[1737039384895,1.042792,704.26,701.93,0.26152985]
[1737039385091,1.042792,704.26,701.84,0.26152985]
[1737039385296,1.042792,704.23,701.85,0.26152985]
[1737039385497,1.042792,704.23,701.86,0.26153387]
[1737039385689,1.042792,704.23,701.87,0.26153387]
[1737039385894,1.042792,704.23,701.88,0.26153387]
[1737039386195,1.042792,704.23,701.89,0.26153387]
[1737039386402,1.042792,704.23,701.9,0.26153387]
[1737039386594,1.042792,704.24,701.91,0.26153387]
[1737039386798,1.042792,704.24,701.92,0.26153387]
[1737039387097,1.042792,704.24,701.93,0.26153387]
[1737039387298,1.042792,704.24,701.94,0.26153387]
[1737039387498,1.042792,704.24,701.95,0.26153387]
[1737039387696,1.042792,704.15,701.96,0.26153387]
[1737039387897,1.042792,704.15,701.97,0.26153387]
[1737039388097,1.042792,704.15,701.98,0.26153387]
[1737039388392,1.042792,704.15,701.99,0.26153387]
[1737039388593,1.042792,704.15,702.0,0.26153387]
[1737039388799,1.042792,704.15,702.01,0.26153387]
[1737039389099,1.042792,704.15,701.77,0.61015803]
[1737039389100,0.2839578,704.33,702.02,0.26153387]
[1737039389401,0.2839578,704.33,702.03,0.26153387]
[1737039389590,0.2839578,704.33,702.04,0.26153387]
[1737039389792,1.042792,704.27,702.05,0.26153387]
[1737039389998,1.042792,704.27,702.06,0.26153387]
[1737039390200,1.042792,704.27,702.07,0.26153387]
[1737039390400,1.042792,704.27,702.08,0.26153387]
[1737039390593,1.042792,704.27,702.09,0.26142995]
[1737039390796,1.042792,704.27,702.1,0.26142995]
[1737039391001,1.042792,704.22,702.11,0.26142995]
[1737039391200,1.042792,704.22,702.12,0.26142995]
[1737039391499,1.042792,704.22,702.13,0.26142995]
[1737039391696,1.042792,704.22,702.0,0.60994499]
[1737039391697,1.042792,704.22,702.14,0.26142995]
[1737039391897,1.042792,704.22,702.15,0.26142995]
[1737039392098,1.042792,704.22,702.17,1.05630528]
[1737039392299,1.042792,704.22,702.18,0.87137494]
[1737039392496,1.042792,704.22,702.19,0.26142995]
[1737039392700,0.2839578,704.33,702.2,0.26142995]
[1737039392701,1.042792,704.1,702.2,0.26142995]
[1737039392998,1.042792,704.1,702.21,0.26142995]
[1737039393301,1.042792,704.1,702.22,0.26142995]
[1737039393502,1.042792,704.1,702.22,0.26145342]
[1737039393803,1.042792,704.1,702.18,0.26145342]
[1737039394002,1.042792,704.14,702.23,0.26145342]
[1737039394198,1.042792,704.14,702.19,0.26145342]
[1737039394395,1.042792,704.14,702.24,0.26145342]
[1737039394596,1.042792,704.14,702.25,0.26145342]
[1737039394795,1.042792,704.14,701.99,1.05630528]
[1737039394796,1.042792,704.14,702.0,0.87152734]
[1737039395098,1.042792,704.14,702.01,0.26145342]
[1737039395296,0.2839578,704.33,702.02,0.26145342]
[1737039395297,1.042792,704.02,702.02,0.26145342]
[1737039395497,1.042792,704.02,702.03,0.26145342]
[1737039395702,1.042792,704.02,702.04,0.26145342]
[1737039396001,1.042792,704.02,702.05,0.26145342]
[1737039396203,1.042792,704.02,702.06,0.26145342]
[1737039396403,1.042792,704.02,702.07,0.26145342]
[1737039396604,1.042792,703.87,702.08,0.26145342]
[1737039396802,1.042792,703.87,702.09,0.26145342]
[1737039396998,1.042792,703.87,702.1,0.26145342]
[1737039397204,1.042792,703.87,701.87,1.05630528]
[1737039397398,1.042792,703.87,701.88,0.26146644]
[1737039397806,1.042792,703.85,701.88,1.31777172]
[1737039398106,1.042792,703.85,701.89,0.26146644]
[1737039399107,1.042792,704.11,701.9,0.2614902]
[1737039399305,1.042792,704.11,701.91,0.2614902]
[1737039399501,1.48532812,703.84,701.92,0.2614902]
[1737039399804,1.042792,704.11,701.93,0.2614902]
[1737039400001,1.042792,704.11,701.26,1.05630528]
[1737039400002,1.48540208,703.83,701.94,0.2614902]
[1737039400304,1.042792,704.09,701.95,0.2614902]
[1737039400499,1.042792,704.09,701.96,0.2614902]
[1737039400705,1.042792,704.09,701.97,0.2614902]
[1737039400905,1.042792,704.09,701.98,0.2614902]
[1737039401105,1.042792,703.99,701.99,0.2614902]
[1737039401409,1.042792,703.99,702.0,0.2614902]
[1737039401602,1.042792,703.99,702.01,0.2614902]
[1737039401800,1.042792,703.99,701.82,1.05630528]
[1737039402005,1.042792,703.99,701.83,0.87161948]
[1737039402205,1.042792,703.79,701.98,1.05630528]
[1737039402708,1.042792,703.79,701.99,0.87162437]
[1737039402909,1.042792,703.79,702.0,0.2615118]
[1737039403104,1.042792,703.79,702.01,0.2615118]
[1737039403306,1.042792,703.79,702.02,0.2615118]
[1737039403507,1.042792,703.77,702.03,0.2615118]
[1737039403708,1.042792,703.77,702.04,0.2615118]
[1737039403904,1.042792,703.77,702.05,0.2615118]
[1737039404104,1.042792,703.77,702.06,0.2615118]
[1737039404305,1.042792,703.77,702.07,0.2615118]
[1737039404506,1.042792,703.96,702.08,0.2615118]
[1737039404705,1.042792,703.96,702.09,0.2615118]
[1737039404911,1.042792,703.96,702.1,0.2615118]
[1737039405210,1.042792,703.96,702.11,0.2615118]
[1737039405409,1.042792,703.96,702.12,0.2615118]
[1737039405610,1.042792,703.76,702.13,0.2615118]
[1737039405809,1.042792,703.76,702.14,0.2615118]
[1737039406006,1.042792,703.76,702.15,0.2615118]
[1737039406213,1.042792,703.76,702.16,0.2615118]
[1737039406411,1.042792,703.76,702.17,0.2615118]
[1737039406612,1.042792,703.76,701.88,1.05630528]
[1737039406815,1.042792,703.6,701.89,0.26157364]
[1737039407114,1.042792,703.6,701.9,0.26157364]
[1737039407308,1.042792,703.6,701.91,0.26157364]
[1737039407513,1.042792,703.6,701.87,0.26157364]
[1737039407711,1.042792,703.6,701.88,0.26157364]
[1737039407911,1.042792,703.57,701.89,0.26157364]
[1737039408115,1.042792,703.57,701.9,0.26157364]
[1737039408415,1.042792,703.57,701.91,0.26157364]
[1737039408616,1.042792,703.57,701.92,0.26157364]
[1737039408816,1.042792,703.58,701.93,0.26157364]
[1737039409017,1.042792,703.58,701.94,0.26157364]
[1737039409216,1.042792,703.58,701.95,0.26160308]
[1737039409415,1.042792,703.58,701.87,0.26160308]
[1737039409618,1.042792,703.58,701.88,0.26160308]
[1737039409811,1.042792,703.58,701.89,0.26160308]
[1737039410014,1.042792,703.58,701.9,0.26160308]
[1737039410210,1.042792,703.58,701.91,0.26160308]
[1737039410516,1.042792,703.58,701.25,1.26756634]
[1737039410517,1.042792,703.48,701.92,0.26161245]
[1737039410717,1.042792,703.48,701.77,0.26161245]
[1737039410916,1.042792,703.48,701.78,0.26161245]
[1737039411113,1.042792,703.48,701.79,0.26161245]
[1737039411416,1.042792,703.48,701.8,0.26161245]
[1737039411615,1.042792,703.46,701.81,0.26161245]
[1737039411918,1.042792,703.46,701.82,0.26161245]
[1737039412221,1.042792,703.46,701.83,0.26161245]
[1737039412420,1.042792,703.46,701.84,0.26161245]
[1737039412620,1.042792,703.46,701.74,1.34131112]
[1737039412621,1.042792,703.46,701.85,0.26161245]
[1737039412819,1.042792,703.47,701.86,0.26161245]
[1737039413021,1.042792,703.47,701.87,0.26161245]
[1737039413219,1.042792,703.47,701.74,0.28500584]
[1737039413415,1.042792,703.47,701.75,0.26161508]
[1737039413820,1.042792,703.63,701.75,0.26161508]
[1737039414022,1.042792,703.63,701.76,0.26162851]
[1737039414322,1.042792,703.63,701.77,0.26162851]
[1737039414622,1.042792,703.37,701.78,0.26162851]
[1737039414821,1.042792,703.37,701.74,0.28500584]
[1737039414822,1.042792,703.37,701.79,0.26162851]
[1737039415024,1.042792,703.37,701.8,0.26162851]
[1737039415322,1.042792,703.37,701.81,0.26162851]
[1737039415523,1.042792,703.37,701.82,0.26162851]
[1737039415720,1.042792,703.37,701.83,0.26162851]
[1737039415922,1.042792,703.39,701.84,0.26162851]
[1737039416122,1.042792,703.39,701.74,0.28500584]
[1737039416417,1.042792,703.39,701.75,0.26164736]
[1737039417224,1.042792,703.44,701.75,0.26164736]
[1737039417817,1.042792,703.44,701.76,0.26164736]
[1737039418022,1.48600465,703.62,701.77,0.26164736]
[1737039418023,1.042792,703.45,701.77,0.26164736]
[1737039418218,1.042792,703.45,701.78,0.26164736]
[1737039418422,1.042792,703.45,701.75,0.26164736]
[1737039418625,1.042792,703.45,701.76,0.26164736]
[1737039418915,1.042792,703.45,701.77,0.26168321]
[1737039419121,1.042792,703.35,701.78,0.26168321]
[1737039419321,1.042792,703.35,701.79,0.26168321]
[1737039419523,1.042792,703.35,701.8,0.26168321]
[1737039419722,1.042792,703.35,701.74,0.28500584]
[1737039420322,1.042792,703.47,701.75,0.26170427]
[1737039421525,1.042792,703.46,701.75,0.26170427]
[1737039422121,1.042792,703.46,701.76,0.26170427]
[1737039422321,1.042792,703.46,701.77,0.26170427]
[1737039422528,1.042792,703.46,701.78,0.26170427]
[1737039422720,1.042792,703.42,701.79,0.26170427]
[1737039422923,1.042792,703.42,701.8,0.26170427]
[1737039423121,1.042792,703.42,701.81,0.26170427]
[1737039423326,1.042792,703.42,701.82,0.26170427]
[1737039423631,1.042792,703.51,701.83,0.26170427]
[1737039423827,1.042792,703.51,701.84,0.26170427]
[1737039424026,1.042792,703.51,701.76,0.26170427]
[1737039424226,1.042792,703.51,701.77,0.26170427]
[1737039424423,1.042792,703.51,701.78,0.26170427]
[1737039424624,1.042792,703.51,701.75,0.26170427]
[1737039424821,1.042792,703.51,701.76,0.26170427]
[1737039425025,1.042792,703.51,701.77,0.26170427]
[1737039425225,1.042792,703.51,701.78,0.26170427]
[1737039425425,1.042792,703.51,701.79,0.26159064]
[1737039425622,1.042792,703.51,701.8,0.26159064]
[1737039425828,1.48600465,703.62,701.75,0.26159064]
[1737039426130,1.48600465,703.62,701.76,0.26159064]
[1737039426327,1.48600465,703.62,701.74,0.28500584]
[1737039426630,1.48600465,703.62,701.75,0.26157479]
[1737039428025,1.042792,703.71,701.75,0.26157479]
[1737039428230,1.042792,703.61,701.75,0.26157479]
[1737039428929,1.042792,703.61,701.75,0.87168632]
[1737039429233,1.042792,703.61,701.76,0.87162931]
[1737039429428,1.042792,703.61,701.77,0.26151302]